fUSD/lending_fUSD_20260402
["ID","MTS","AMOUNT","RATE_DAILY","PERIOD"]
[419282936,1775111442926,-2826.0,0.00015892,2]
[419282937,1775111442936,-258.66,0.00015895,2]
[419282938,1775111442946,-337.97256879,0.00015899,2]
[419282939,1775111442955,-500.0,0.00015899,2]
[419282940,1775111442965,-500.0,0.00015899,2]
[419282941,1775111442975,-243.56217821,0.00015899,2]
[419282942,1775111442985,-262.95640899,0.00015899,2]
[419282943,1775111442995,-191.73577539,0.00015899,2]
[419282944,1775111443005,-500.0,0.00015899,2]
[419282945,1775111443015,-500.0,0.00015899,3]
[419282946,1775111443025,-675935.5932,0.000159,2]
[419282947,1775111443035,-1000.0,0.000159,2]
[419282948,1775111443046,-1121542.56472205,0.000159,2]
[419282949,1775111443138,-325.47403664,0.000159,2]
[419282962,1775111445632,-8996.75185267,0.000159,2]
[419282963,1775111445898,-33367.37218718,0.000159,2]
[419282964,1775111445910,-40721.69589686,0.000159,2]
[419282965,1775111445953,-1873.0,0.000159,2]
[419283000,1775112631762,-255.83894739,0.0001195,2]
[419283001,1775112631774,-310.10105261,0.0001195,2]
[419283002,1775112631784,-179.14916869,0.00013145,2]
[419283003,1775112631794,-578.0,0.000135,2]
[419283004,1775112631803,-550.0,0.000135,2]
[419283005,1775112631812,-263.0052214,0.00013601,2]
[419283006,1775112631822,-304.0,0.000137,2]
[419283007,1775112631832,-300.0,0.00013701,2]
[419283008,1775112631841,-99.8824849,0.00013701,2]
[419283009,1775112631852,-200.1175151,0.00013701,2]
[419283010,1775112631863,-300.0,0.00013701,2]
[419283011,1775112631872,-300.0,0.00013701,2]
[419283012,1775112631882,-300.0,0.00013899,2]
[419283013,1775112631891,-500.0,0.000139,2]
[419283014,1775112631900,-500.52022278,0.000139,2]
[419283015,1775112631910,-500.2058628,0.000139,2]
[419283016,1775112631921,-178.57,0.00013929,2]
[419283017,1775112631932,-500.44811231,0.00014,2]
[419283018,1775112631943,-1500.0,0.0001469,2]
[419283019,1775112631959,-593.01,0.0001469,2]
[419283020,1775112631968,-1366.88181733,0.0001469,2]
[419283021,1775112631981,-555.92102686,0.0001469,2]
[419283022,1775112631992,-391.88,0.0001469,2]
[419283023,1775112632004,-1526.40458596,0.0001469,2]
[419283024,1775112632016,-672.09,0.0001469,2]
[419283025,1775112632027,-953.94191315,0.0001469,2]
[419283026,1775112632039,-836.01155217,0.0001469,2]
[419283027,1775112632051,-108.09910453,0.0001469,2]
[419283028,1775112632061,-3240.0,0.0001471,2]
[419283029,1775112632071,-1179.08,0.00014988,2]
[419283030,1775112632080,-266.0,0.0001504,2]
[419283031,1775112632092,-500.0,0.00015041,2]
[419283033,1775112632101,-200.0,0.00015088,2]
[419283035,1775112632110,-300.0,0.000151,2]
[419283036,1775112632120,-150.0,0.00015127,2]
[419283037,1775112632128,-420.0,0.00015229,2]
[419283038,1775112632138,-332.38601295,0.00015252,2]
[419283039,1775112632149,-10000.0,0.00015277,2]
[419283040,1775112632158,-285.20933394,0.0001532,2]
[419283041,1775112632167,-342.21048287,0.0001532,2]
[419283042,1775112632177,-169.4759,0.0001569,2]
[419283043,1775112632187,-348.2695,0.0001569,2]
[419283044,1775112632198,-211.4,0.0001569,2]
[419283045,1775112632208,-211.4,0.0001569,2]
[419283046,1775112632218,-211.4,0.0001569,2]
[419283047,1775112632229,-3474.3649,0.000157,2]
[419283048,1775112632240,-2500.0,0.000157,2]
[419283049,1775112632249,-2308.19884673,0.000157,2]
[419283050,1775112632258,-1179.08,0.00015737,2]
[419283051,1775112632268,-500.0,0.00015753,2]
[419283052,1775112632277,-501.1899069,0.00015773,2]
[419283053,1775112632286,-502.29127134,0.00015773,2]
[419283054,1775112632295,-501.90683054,0.00015773,2]
[419283055,1775112632306,-500.68484421,0.00015773,2]
[419283056,1775112632316,-500.0,0.00015773,2]
[419283057,1775112632326,-501.67855026,0.00015773,2]
[419283058,1775112632335,-500.47003133,0.00015773,2]
[419283059,1775112632347,-164.35655208,0.00015773,2]
[419283060,1775112632356,-2294.46417933,0.00015773,2]
[419283061,1775112632366,-8390.06115519,0.00015773,2]
[419283062,1775112632376,-500.0,0.00015789,2]
[419283063,1775112632385,-76132.0755,0.0001579,2]
[419283064,1775112632395,-500.0,0.00015799,2]
[419283065,1775112632405,-200.54243246,0.00015799,2]
[419283066,1775112632415,-500.0,0.00015799,2]
[419283067,1775112632424,-519.21043308,0.00015799,2]
[419283068,1775112632434,-150.6474,0.00015799,2]
[419283069,1775112632444,-508.65862639,0.00015799,2]
[419283070,1775112632458,-500.0,0.00015799,2]
[419283071,1775112632468,-500.0,0.00015799,2]
[419283072,1775112632478,-1000.0,0.000158,2]
[419283073,1775112632488,-12662.85411228,0.000158,2]
[419283074,1775112632501,-2859.42730567,0.000158,2]
[419283075,1775112632513,-7316.87172207,0.000158,2]
[419283076,1775112632529,-301.40752861,0.000158,2]
[419283077,1775112632541,-1421.69894956,0.000158,2]
[419283087,1775112640101,-150.0,0.00014,2]
[419283088,1775112640111,-169.228,0.000152,7]
[419283089,1775112640122,-5.71542713,0.000158,2]
[419283090,1775112640159,-2129.56782122,0.000158,2]
[419283091,1775112640580,-239247.64603686,0.000158,2]
[419283092,1775112641579,-622.153193,0.000158,2]
[419283093,1775112641686,-809.73291563,0.000158,2]
[419283094,1775112641741,-13992.98583388,0.000158,2]
[419283095,1775112641794,-11803.08045409,0.000158,2]
[419283096,1775112641804,-1300.0,0.000158,5]
[419283097,1775112641813,-500.75782607,0.00015873,2]
[419283098,1775112641823,-527.44178709,0.00015873,2]
[419283099,1775112641833,-500.0,0.00015873,2]
[419283100,1775112641842,-500.0,0.00015873,2]
[419283101,1775112641852,-501.05622863,0.00015873,2]
[419283102,1775112641861,-500.0,0.00015873,2]
[419283103,1775112641871,-501.23041387,0.00015873,2]
[419283104,1775112641880,-500.0,0.00015873,2]
[419283105,1775112641889,-418.42031113,0.00015873,2]
[419283106,1775112641899,-500.0,0.00015873,2]
[419283107,1775112641908,-500.0,0.00015873,2]
[419283108,1775112641918,-500.0,0.00015873,2]
[419283109,1775112641927,-500.0,0.00015873,2]
[419283110,1775112641938,-500.73496537,0.00015873,2]
[419283111,1775112641949,-500.0,0.00015873,2]
[419283112,1775112641958,-500.0,0.00015873,2]
[419283113,1775112641968,-500.0,0.00015873,2]
[419283114,1775112641977,-326.07779999,0.00015873,2]
[419283115,1775112641986,-501.18780645,0.00015873,2]
[419283116,1775112641995,-500.0,0.00015873,2]
[419283117,1775112642004,-404.00850588,0.00015873,2]
[419283118,1775112642028,-95.99149412,0.00015873,2]
[419283119,1775112642038,-428.08321991,0.00015873,2]
[419283120,1775112642047,-500.56277096,0.00015873,2]
[419283121,1775112642056,-500.0,0.00015873,2]
[419283122,1775112642065,-500.0,0.00015873,2]
[419283124,1775112642076,-332.35,0.0001589,2]
[419283126,1775112642085,-69.50016331,0.0001589,2]
[419283129,1775112642096,-430.49983669,0.0001589,2]
[419283131,1775112642105,-500.0,0.0001589,2]
[419283133,1775112642115,-500.0,0.0001589,2]
[419283135,1775112642124,-500.0,0.0001589,2]
[419283137,1775112642133,-500.0,0.0001589,2]
[419283139,1775112642143,-460.46442658,0.0001589,2]
[419283142,1775112642166,-39.53557342,0.0001589,2]
[419283144,1775112642175,-500.0,0.0001589,2]
[419283146,1775112642184,-389.63818379,0.0001589,2]
[419283148,1775112642193,-500.0,0.0001589,2]
[419283150,1775112642203,-500.0,0.0001589,2]
[419283152,1775112642212,-488.90149279,0.0001589,2]
[419283181,1775112643346,-11.09850721,0.0001589,2]
[419283182,1775112643356,-500.0,0.0001589,2]
[419283183,1775112643365,-500.0,0.0001589,2]
[419283184,1775112643375,-500.0,0.0001589,2]
[419283185,1775112643385,-500.0,0.0001589,2]
[419283186,1775112643394,-500.0,0.0001589,2]
[419283187,1775112643403,-500.0,0.0001589,2]
[419283188,1775112643413,-500.0,0.0001589,2]
[419283189,1775112643422,-500.0,0.0001589,2]
[419283190,1775112643432,-500.0,0.0001589,2]
[419283191,1775112643441,-500.0,0.0001589,2]
[419283192,1775112643450,-500.0,0.0001589,2]
[419283193,1775112643460,-479.83976153,0.0001589,2]
[419283199,1775112645815,-20.16023847,0.0001589,2]
[419283200,1775112645826,-500.0,0.0001589,2]
[419283201,1775112645835,-264.44314973,0.0001589,2]
[419283202,1775112645844,-152.79150506,0.0001589,2]
[419283203,1775112645870,-1065.32192759,0.0001589,2]
[419283204,1775112646138,-781.88656735,0.0001589,2]
[419283205,1775112646148,-445.51075129,0.00015896,2]
[419283206,1775112646158,-491.0,0.00015896,2]
[419283207,1775112646167,-362.26019361,0.00015897,2]
[419283208,1775112646179,-4777.03773779,0.00015897,2]
[419283209,1775112646191,-1482.53137018,0.00015897,2]
[419283210,1775112646290,-4445.91469702,0.00015897,2]
[419283211,1775112646305,-1603.70722528,0.00015897,2]
[419283212,1775112646320,-16853.25,0.00015897,2]
[419283218,1775112925116,-526302.29944589,0.00046678,40]
[419283219,1775112925145,-1000000.0,0.00046678,45]
[419283220,1775112925174,-1000000.0,0.00046678,65]
[419283221,1775112925202,-1000000.0,0.00046678,65]
[419283222,1775112925227,-1557254.0,0.00046678,58]
[419283223,1775112925252,-1003.52434507,0.00046678,120]
[419283224,1775112925276,-500.0,0.00046678,120]
[419283225,1775112925302,-500.0,0.00046678,120]
[419283226,1775112925326,-500.0,0.00046678,120]
[419283227,1775112925350,-500.0,0.00046678,120]
[419283228,1775112925374,-480.72,0.00046678,120]
[419283229,1775112925398,-4895.464937,0.00046678,30]
[419283230,1775112925423,-2861.55,0.00046678,30]
[419283231,1775112925447,-4305.9880206,0.00046678,30]
[419283232,1775112925471,-500.0,0.00046678,120]
[419283233,1775112925494,-500.0,0.00046678,120]
[419283234,1775112925519,-500.0,0.00046678,120]
[419283235,1775112925544,-500.0,0.00046678,120]
[419283236,1775112925569,-500.0,0.00046678,120]
[419283237,1775112925595,-500.0,0.00046678,120]
[419283238,1775112925620,-500.0,0.00046678,120]
[419283239,1775112925645,-500.0,0.00046678,120]
[419283240,1775112925670,-500.0,0.00046678,120]
[419283241,1775112925696,-500.0,0.00046678,120]
[419283242,1775112925720,-500.0,0.00046678,120]
[419283243,1775112925744,-500.0,0.00046678,120]
[419283244,1775112925768,-500.0,0.00046678,120]
[419283245,1775112925792,-500.0,0.00046678,120]
[419283246,1775112925816,-500.0,0.00046678,120]
[419283247,1775112925840,-509.45289183,0.00046678,120]
[419283248,1775112925865,-500.0,0.00046678,120]
[419283249,1775112925891,-500.0,0.00046678,120]
[419283250,1775112925918,-500.0,0.00046678,120]
[419283251,1775112925943,-500.0,0.00046678,120]
[419283252,1775112925967,-500.0,0.00046678,120]
[419283253,1775112925991,-500.0,0.00046678,120]
[419283254,1775112926015,-500.0,0.00046678,120]
[419283255,1775112926038,-500.0,0.00046678,120]
[419283256,1775112926063,-500.0,0.00046678,120]
[419283257,1775112926087,-500.0,0.00046678,120]
[419283258,1775112926112,-500.0,0.00046678,120]
[419283259,1775112926137,-500.0,0.00046678,120]
[419283260,1775112926163,-1000000.0,0.00046678,60]
[419283261,1775112926187,-500.0,0.00046678,120]
[419283262,1775112926214,-1000000.0,0.00046678,60]
[419283263,1775112926238,-583.9547332,0.00046678,120]
[419283264,1775112926265,-1000000.0,0.00046678,60]
[419283265,1775112926289,-350.0,0.00046678,120]
[419283266,1775112926314,-440.73606182,0.00046678,120]
[419283267,1775112926338,-751.49,0.00046678,60]
[419283268,1775112926367,-646167.0,0.00046678,60]
[419283269,1775112926394,-238093.81956459,0.00046678,120]
[419283270,1775112931025,-761906.18043541,0.00046678,120]
[419283271,1775112931056,-350000.0,0.00046678,120]
[419283272,1775112931082,-52900.88,0.00046678,120]
[419283273,1775112931374,-720937.0,0.00046678,120]
[419283274,1775112931424,-2140.84461183,0.00046678,30]
[419283275,1775112931451,-500.0,0.00046678,120]
[419283276,1775112931477,-500.0,0.00046678,120]
[419283277,1775112931503,-500.0,0.00046678,120]
[419283278,1775112931528,-500.0,0.00046678,120]
[419283279,1775112931553,-500.0,0.00046678,120]
[419283280,1775112931578,-500.0,0.00046678,120]
[419283281,1775112931602,-500.0,0.00046678,120]
[419283282,1775112931627,-500.33003655,0.00046678,120]
[419283283,1775112931651,-500.0,0.00046678,120]
[419283284,1775112931675,-566.71457946,0.00046678,120]
[419283285,1775112931703,-500.0,0.00046678,120]
[419283286,1775112931727,-500.0,0.00046678,120]
[419283287,1775112931752,-500.0,0.00046678,120]
[419283288,1775112931777,-150.67737905,0.00046678,120]
[419283289,1775112931801,-150.67737905,0.00046678,120]
[419283290,1775112931826,-150.67737905,0.00046678,120]
[419283291,1775112931850,-150.67737905,0.00046678,120]
[419283292,1775112931875,-150.67737905,0.00046678,120]
[419283293,1775112931900,-150.67737905,0.00046678,120]
[419283294,1775112931924,-150.67737905,0.00046678,120]
[419283295,1775112931949,-150.67737905,0.00046678,120]
[419283296,1775112931973,-150.67737905,0.00046678,120]
[419283297,1775112931997,-150.67737905,0.00046678,120]
[419283298,1775112932022,-150.67737905,0.00046678,120]
[419283299,1775112932046,-150.67737905,0.00046678,120]
[419283300,1775112932071,-150.67737905,0.00046678,120]
[419283301,1775112932097,-150.67737905,0.00046678,120]
[419283302,1775112932121,-150.67737905,0.00046678,120]
[419283303,1775112932146,-150.67737905,0.00046678,120]
[419283304,1775112932171,-150.67737905,0.00046678,120]
[419283305,1775112932196,-150.67737905,0.00046678,120]
[419283306,1775112932221,-150.67737905,0.00046678,120]
[419283307,1775112932246,-150.67737905,0.00046678,120]
[419283308,1775112932271,-150.67737898,0.00046678,120]
[419283309,1775112932296,-306.03134781,0.00046678,60]
[419283310,1775112932322,-500.0,0.00046678,120]
[419283311,1775112932348,-500.0,0.00046678,120]
[419283312,1775112932373,-500.0,0.00046678,120]
[419283313,1775112932398,-500.0,0.00046678,120]
[419283314,1775112932423,-500.0,0.00046678,120]
[419283315,1775112932448,-500.0,0.00046678,120]
[419283316,1775112932474,-196.33669903,0.00046678,120]
[419283317,1775112932500,-1000.0,0.00046678,120]
[419283318,1775112932526,-1000.0,0.00046678,120]
[419283319,1775112932552,-1000.0,0.00046678,120]
[419283320,1775112932577,-1000.0,0.00046678,120]
[419283321,1775112932602,-1017.42261687,0.00046678,120]
[419283322,1775112932626,-500.0,0.00046678,120]
[419283323,1775112932651,-485.56977353,0.00046678,120]
[419283324,1775112932677,-19990.0,0.00046678,120]
[419283325,1775112932703,-1003.49345389,0.00046678,120]
[419283326,1775112932729,-500.0,0.00046678,120]
[419283327,1775112932753,-2074.77,0.00046678,120]
[419283328,1775112932778,-2074.77,0.00046678,120]
[419283329,1775112932803,-2074.77,0.00046678,120]
[419283330,1775112932828,-2074.77,0.00046678,120]
[419283331,1775112932852,-2074.77,0.00046678,120]
[419283332,1775112932878,-2074.77,0.00046678,120]
[419283333,1775112932903,-2074.77,0.00046678,120]
[419283334,1775112932927,-2074.77,0.00046678,120]
[419283335,1775112932953,-2074.77,0.00046678,120]
[419283336,1775112932978,-2074.77,0.00046678,120]
[419283337,1775112933003,-2074.77,0.00046678,120]
[419283338,1775112933028,-2074.77,0.00046678,120]
[419283339,1775112933052,-2074.77,0.00046678,120]
[419283340,1775112933077,-2074.77,0.00046678,120]
[419283341,1775112933103,-2074.77,0.00046678,120]
[419283342,1775112933128,-2074.77,0.00046678,120]
[419283343,1775112933364,-2074.77,0.00046678,120]
[419283344,1775112933390,-2074.77,0.00046678,120]
[419283345,1775112933415,-2074.77,0.00046678,120]
[419283346,1775112933442,-2074.77,0.00046678,120]
[419283347,1775112933467,-2074.77,0.00046678,120]
[419283348,1775112933493,-2074.77,0.00046678,120]
[419283349,1775112933519,-2074.77,0.00046678,120]
[419283350,1775112933544,-2074.80607052,0.00046678,120]
[419283351,1775112933570,-500.0,0.00046678,120]
[419283352,1775112933595,-500.0,0.00046678,120]
[419283353,1775112933620,-517.08870044,0.00046678,120]
[419283354,1775112933645,-500.0,0.00046678,120]
[419283355,1775112933672,-500.0,0.00046678,120]
[419283356,1775112933697,-535.51250082,0.00046678,120]
[419283357,1775112933725,-500.0,0.00046678,120]
[419283358,1775112933750,-500.0,0.00046678,120]
[419283359,1775112933776,-520.78931134,0.00046678,120]
[419283360,1775112933801,-500.0,0.00046678,120]
[419283361,1775112933826,-500.0,0.00046678,120]
[419283362,1775112933851,-188.0190024,0.00046678,120]
[419283363,1775112933875,-500.0,0.00046678,120]
[419283364,1775112933900,-500.0,0.00046678,120]
[419283365,1775112933925,-516.99811291,0.00046678,120]
[419283366,1775112933951,-525.92263494,0.00046678,120]
[419283367,1775112933975,-500.0,0.00046678,120]
[419283368,1775112934000,-500.0,0.00046678,120]
[419283369,1775112934026,-529.53727517,0.00046678,120]
[419283370,1775112934051,-500.0,0.00046678,120]
[419283371,1775112934076,-500.0,0.00046678,120]
[419283372,1775112934102,-525.19667708,0.00046678,120]
[419283373,1775112934127,-500.0,0.00046678,120]
[419283374,1775112934152,-500.0,0.00046678,120]
[419283375,1775112934178,-500.0,0.00046678,120]
[419283376,1775112934204,-500.0,0.00046678,120]
[419283377,1775112934229,-500.0,0.00046678,120]
[419283378,1775112934255,-265.4980844,0.00046678,120]
[419283379,1775112934280,-500.0,0.00046678,120]
[419283380,1775112934305,-400.45611168,0.00046678,120]
[419283381,1775112934329,-150.0,0.00046678,120]
[419283382,1775112934370,-500.0,0.00046678,120]
[419283383,1775112934396,-621.21502081,0.00046678,120]
[419283384,1775112934422,-500.0,0.00046678,120]
[419283385,1775112934448,-512.88624469,0.00046678,120]
[419283386,1775112934473,-199.12115941,0.00046678,120]
[419283387,1775112934500,-5000.0,0.00046678,31]
[419283388,1775112934526,-200.0,0.00046678,120]
[419283389,1775112934553,-200.0,0.00046678,120]
[419283390,1775112934895,-200.0,0.00046678,120]
[419283391,1775112934921,-200.0,0.00046678,120]
[419283392,1775112934948,-200.0,0.00046678,120]
[419283393,1775112934974,-300.0,0.00046678,120]
[419283394,1775112934999,-300.0,0.00046678,120]
[419283395,1775112935024,-300.0,0.00046678,120]
[419283396,1775112935050,-500.0,0.00046678,120]
[419283397,1775112935075,-200.1,0.00046678,120]
[419283398,1775112935100,-200.0,0.00046678,120]
[419283399,1775112935125,-200.0,0.00046678,120]
[419283400,1775112935150,-200.0,0.00046678,120]
[419283401,1775112935176,-200.0,0.00046678,120]
[419283402,1775112935202,-500.0,0.00046678,120]
[419283403,1775112935227,-561.86,0.00046678,120]
[419283404,1775112935252,-1000.0,0.00046678,120]
[419283405,1775112935278,-1000.0,0.00046678,120]
[419283406,1775112935303,-1000.0,0.00046678,120]
[419283407,1775112935329,-999.99,0.00046678,120]
[419283408,1775112935354,-470.50262897,0.00046678,120]
[419283409,1775112935380,-1000.0,0.00046678,31]
[419283410,1775112935410,-4240.96794193,0.00046678,60]
[419283411,1775112935436,-2275.58564605,0.00046678,30]
[419283412,1775112935462,-500.0,0.00046678,120]
[419283413,1775112935488,-545.98772344,0.00046678,120]
[419283414,1775112935514,-500.0,0.00046678,120]
[419283415,1775112935542,-500.0,0.00046678,120]
[419283416,1775112935568,-500.0,0.00046678,120]
[419283417,1775112935596,-500.0,0.00046678,120]
[419283418,1775112935623,-500.0,0.00046678,120]
[419283419,1775112935650,-500.0,0.00046678,120]
[419283420,1775112935677,-500.0,0.00046678,120]
[419283421,1775112935704,-500.0,0.00046678,120]
[419283422,1775112935730,-174.19728717,0.00046678,120]
[419283423,1775112935756,-500.0,0.00046678,120]
[419283424,1775112935782,-500.0,0.00046678,120]
[419283425,1775112935808,-500.0,0.00046678,120]
[419283426,1775112935834,-500.0,0.00046678,120]
[419283427,1775112935860,-500.0,0.00046678,120]
[419283428,1775112935887,-500.0,0.00046678,120]
[419283429,1775112935915,-500.0,0.00046678,120]
[419283430,1775112935941,-325.9134199,0.00046678,120]
[419283431,1775112935967,-500.0,0.00046678,120]
[419283432,1775112935993,-500.0,0.00046678,120]
[419283433,1775112936020,-500.0,0.00046678,120]
[419283434,1775112936047,-584.47,0.00046678,120]
[419283435,1775112936077,-500.0,0.00046678,120]
[419283436,1775112936104,-500.0,0.00046678,120]
[419283437,1775112936131,-491.32117914,0.00046678,120]
[419283438,1775112936160,-329.51550866,0.00046678,120]
[419283439,1775112936186,-500.0,0.00046678,120]
[419283440,1775112936213,-584.47,0.00046678,120]
[419283441,1775112936238,-500.0,0.00046678,120]
[419283442,1775112936265,-500.0,0.00046678,120]
[419283443,1775112936293,-500.0,0.00046678,120]
[419283444,1775112936319,-500.0,0.00046678,120]
[419283445,1775112936347,-584.47,0.00046678,120]
[419283446,1775112936373,-500.0,0.00046678,120]
[419283447,1775112936399,-500.0,0.00046678,120]
[419283448,1775112936426,-500.0,0.00046678,120]
[419283449,1775112936452,-500.0,0.00046678,120]
[419283450,1775112936479,-500.0,0.00046678,120]
[419283451,1775112936505,-500.0,0.00046678,120]
[419283452,1775112936533,-584.47,0.00046678,120]
[419283453,1775112936560,-486.83370103,0.00046678,120]
[419283454,1775112936586,-500.0,0.00046678,120]
[419283455,1775112936612,-500.0,0.00046678,120]
[419283456,1775112936638,-500.0,0.00046678,120]
[419283457,1775112936664,-500.0,0.00046678,120]
[419283458,1775112936691,-584.47,0.00046678,120]
[419283459,1775112936717,-500.0,0.00046678,120]
[419283460,1775112936742,-500.0,0.00046678,120]
[419283461,1775112936767,-500.0,0.00046678,120]
[419283462,1775112936794,-584.47,0.00046678,120]
[419283463,1775112936819,-500.0,0.00046678,120]
[419283464,1775112936844,-500.0,0.00046678,120]
[419283465,1775112936871,-500.0,0.00046678,120]
[419283466,1775112936896,-288.73233942,0.00046678,120]
[419283467,1775112936922,-584.47,0.00046678,120]
[419283468,1775112936948,-500.0,0.00046678,120]
[419283469,1775112936973,-500.0,0.00046678,120]
[419283470,1775112936999,-500.0,0.00046678,120]
[419283471,1775112937026,-584.47,0.00046678,120]
[419283472,1775112937051,-500.0,0.00046678,120]
[419283473,1775112937076,-500.0,0.00046678,120]
[419283474,1775112937101,-500.0,0.00046678,120]
[419283475,1775112937127,-500.0,0.00046678,120]
[419283476,1775112937153,-584.47,0.00046678,120]
[419283477,1775112937179,-549.2827957,0.00046678,120]
[419283478,1775112937204,-230.31506059,0.00046678,120]
[419283479,1775112937231,-500.0,0.00046678,120]
[419283480,1775112937257,-518.08861342,0.00046678,120]
[419283481,1775112937282,-500.0,0.00046678,120]
[419283482,1775112937310,-500.0,0.00046678,120]
[419283483,1775112937336,-500.0,0.00046678,120]
[419283484,1775112937364,-584.47,0.00046678,120]
[419283485,1775112937390,-500.0,0.00046678,120]
[419283486,1775112937415,-500.0,0.00046678,120]
[419283487,1775112937441,-520.17023853,0.00046678,120]
[419283488,1775112937467,-500.0,0.00046678,120]
[419283489,1775112937495,-584.47,0.00046678,120]
[419283490,1775112937520,-500.0,0.00046678,120]
[419283491,1775112937546,-498.66571674,0.00046678,120]
[419283492,1775112937572,-584.47,0.00046678,120]
[419283493,1775112937599,-584.47,0.00046678,120]
[419283494,1775112937624,-500.0,0.00046678,120]
[419283495,1775112937651,-500.0,0.00046678,120]
[419283496,1775112937679,-584.47,0.00046678,120]
[419283497,1775112937706,-500.0,0.00046678,120]
[419283498,1775112937732,-500.0,0.00046678,120]
[419283499,1775112937758,-584.47,0.00046678,120]
[419283500,1775112937784,-500.0,0.00046678,120]
[419283501,1775112937810,-500.0,0.00046678,120]
[419283502,1775112937837,-584.47,0.00046678,120]
[419283503,1775112937862,-500.0,0.00046678,120]
[419283504,1775112937888,-500.0,0.00046678,120]
[419283505,1775112938191,-584.47,0.00046678,120]
[419283506,1775112938218,-500.0,0.00046678,120]
[419283507,1775112938244,-500.0,0.00046678,120]
[419283508,1775112938270,-474.81807807,0.00046678,120]
[419283509,1775112938296,-584.47,0.00046678,120]
[419283510,1775112938322,-500.0,0.00046678,120]
[419283511,1775112938348,-584.47,0.00046678,120]
[419283512,1775112938372,-500.0,0.00046678,120]
[419283513,1775112938397,-500.0,0.00046678,120]
[419283514,1775112938422,-584.47,0.00046678,120]
[419283515,1775112938447,-293.48076745,0.00046678,120]
[419283516,1775112938472,-584.47,0.00046678,120]
[419283517,1775112938499,-584.47,0.00046678,120]
[419283518,1775112938527,-584.47,0.00046678,120]
[419283519,1775112938554,-584.52874637,0.00046678,120]
[419283520,1775112938580,-500.0,0.00046678,120]
[419283521,1775112938606,-238.44938563,0.00046678,120]
[419283522,1775112938631,-500.0,0.00046678,120]
[419283523,1775112938658,-500.0,0.00046678,120]
[419283524,1775112938685,-500.0,0.00046678,120]
[419283525,1775112938709,-500.0,0.00046678,120]
[419283526,1775112938734,-289.44091358,0.00046678,120]
[419283527,1775112938760,-500.0,0.00046678,120]
[419283528,1775112938785,-500.0,0.00046678,120]
[419283529,1775112938812,-500.0,0.00046678,120]
[419283530,1775112938837,-500.0,0.00046678,120]
[419283531,1775112938863,-500.0,0.00046678,120]
[419283532,1775112938889,-230.31098756,0.00046678,120]
[419283533,1775112938915,-2884.52,0.00046678,120]
[419283534,1775112938940,-2884.52,0.00046678,120]
[419283535,1775112938966,-2884.52,0.00046678,120]
[419283536,1775112938991,-2884.52,0.00046678,120]
[419283537,1775112939016,-2884.52,0.00046678,120]
[419283538,1775112939042,-2884.52,0.00046678,120]
[419283539,1775112939068,-2884.52,0.00046678,120]
[419283540,1775112939094,-2884.52,0.00046678,120]
[419283541,1775112939122,-2884.52,0.00046678,120]
[419283542,1775112939148,-2884.52,0.00046678,120]
[419283543,1775112939174,-2884.52,0.00046678,120]
[419283544,1775112939202,-2884.52,0.00046678,120]
[419283545,1775112939229,-2884.52,0.00046678,120]
[419283546,1775112939255,-2884.52,0.00046678,120]